bitfinex-derivatives/quotes_BTCF0:USTF0_20210102
["timestamp","ask_amount","ask_price","bid_price","bid_amount"]
[1609553554944,4.47418158,29384.0,29383.0,0.00036625]
[1609553556546,5.47418158,29384.0,29383.0,0.00036625]
[1609553557548,5.47418158,29384.0,29382.0,0.18043158]
[1609553557949,1.32258158,29384.0,29374.0,1.81069395]
[1609553558152,6.72908158,29384.0,29383.0,0.00036625]
[1609553558351,1.32258158,29384.0,29375.0,0.00036625]
[1609553558549,1.32258158,29384.0,29383.0,0.00036625]
[1609553558752,5.64058158,29384.0,29383.0,0.00036625]
[1609553558949,1.32258158,29384.0,29376.0,0.00036625]
[1609553559149,4.72,29378.0,29373.0,1.98979049]
[1609553559349,4.72,29378.0,29377.0,0.00036626]
[1609553559550,4.72,29378.0,29374.0,0.00036626]
[1609553560851,0.18043158,29375.0,29374.0,0.00036626]
[1609553561552,4.30633158,29375.0,29374.0,0.00036626]
[1609553566762,4.3042627,29375.0,29374.0,0.00036626]
[1609553569860,0.1783627,29375.0,29374.0,0.00036626]
[1609553570062,0.1783627,29375.0,29374.0,5.32576626]
[1609553570762,0.1783627,29375.0,29374.0,0.00036626]
[1609553575270,0.8922627,29375.0,29374.0,0.00036626]
[1609553578072,0.89019369,29375.0,29374.0,0.00036626]
[1609553578475,0.89019369,29375.0,29374.0,0.03994052]
[1609553586092,0.89019369,29375.0,29374.0,0.00036626]
[1609553586592,0.89019369,29375.0,29366.0,0.03994235]
[1609553586994,0.89019369,29375.0,29374.0,0.00036626]
[1609553587194,0.7139,29375.0,29368.0,0.18043158]
[1609553587396,0.16496,29378.0,29374.0,0.00036628]
[1609553587795,3.9976,29377.0,29369.0,0.03994415]
[1609553587996,3.99801441,29377.0,29375.0,0.00036628]
[1609553588195,3.9976,29377.0,29370.0,0.00036628]
[1609553588596,3.9976,29377.0,29376.0,0.00036628]
[1609553588796,3.9976,29377.0,29371.0,0.00036628]
[1609553588997,3.99801441,29377.0,29376.0,0.00036628]
[1609553589196,3.9976,29377.0,29372.0,0.00036628]
[1609553589496,3.9976,29377.0,29369.0,0.03994415]
[1609553589896,3.9976,29377.0,29373.0,0.00036628]
[1609553590097,3.9976,29377.0,29370.0,0.00036628]
[1609553590298,3.9976,29377.0,29374.0,0.00036628]
[1609553590598,1.0,29376.0,29371.0,0.00036628]
[1609553590797,1.0,29376.0,29375.0,0.00036628]
[1609553591099,1.0,29376.0,29372.0,0.00036628]
[1609553591298,1.18043158,29376.0,29375.0,0.00036628]
[1609553591598,1.18043158,29376.0,29369.0,0.03994415]
[1609553591898,1.18043158,29376.0,29375.0,0.00036628]
[1609553592098,1.18043158,29376.0,29370.0,0.00036628]
[1609553592398,1.18043158,29376.0,29369.0,0.03994415]
[1609553592598,0.18043158,29376.0,29369.0,0.03994415]
[1609553592798,0.18043158,29376.0,29371.0,0.00036628]
[1609553592999,0.18043158,29376.0,29370.0,0.00036628]
[1609553593199,3.9976,29377.0,29372.0,0.00036628]
[1609553593398,3.9976,29377.0,29371.0,0.00036628]
[1609553593700,3.9976,29377.0,29369.0,0.03994415]
[1609553593998,3.9976,29377.0,29372.0,0.00036628]
[1609553594198,3.9976,29377.0,29370.0,0.00036628]
[1609553594599,3.9976,29377.0,29369.0,0.03994415]
[1609553594800,3.9976,29377.0,29371.0,0.00036628]
[1609553595001,3.9976,29377.0,29370.0,0.00036628]
[1609553595201,0.18043158,29371.0,29370.0,0.00036628]
[1609553595401,0.18043158,29371.0,29369.0,0.03957787]
[1609553595601,0.30632158,29371.0,29370.0,0.00036628]
[1609553595801,0.30632158,29371.0,29369.0,0.03994415]
[1609553596205,0.30632158,29371.0,29370.0,0.00036628]
[1609553596603,0.30632158,29371.0,29369.0,0.03994417]
[1609553596904,0.30632158,29371.0,29370.0,0.0003663]
[1609553597303,0.30632158,29371.0,29370.0,0.8001663]
[1609553597503,0.30632158,29371.0,29370.0,0.7998]
[1609553597703,0.30632158,29371.0,29370.0,0.83974569]
[1609553598003,0.30632158,29371.0,29370.0,1.83974569]
[1609553599006,0.12589,29371.0,29370.0,1.83974569]
[1609553599206,0.12382087,29371.0,29370.0,1.83974569]
[1609553599406,0.34539158,29378.0,29370.0,1.83974569]
[1609553599606,0.16496,29378.0,29370.0,1.11464073]
[1609553599806,0.00430945,29383.0,29377.0,5.5611]
[1609553600007,0.00430945,29383.0,29378.0,1.0]
[1609553600307,0.00430945,29383.0,29379.0,0.03956129]
[1609553600708,0.00430945,29383.0,29379.0,0.0399274]
[1609553601107,0.2758,29384.0,29379.0,0.0399274]
[1609553601308,0.2758,29384.0,29383.0,0.18043158]
[1609553601507,0.2758,29384.0,29383.0,1.18043158]
[1609553601709,0.2758,29384.0,29383.0,1.22035517]
[1609553603607,0.18043158,29387.0,29383.0,1.22035517]
[1609553604009,0.18043158,29387.0,29384.0,0.03992431]
[1609553605208,0.18043158,29387.0,29386.0,0.18043158]
[1609553605609,0.18043158,29387.0,29386.0,0.18079769]
[1609553609311,0.18043158,29387.0,29386.0,0.00036611]
[1609553609914,0.18043158,29387.0,29383.0,0.7526]
[1609553609915,0.18043158,29387.0,29384.0,0.00036613]
[1609553610113,0.18043158,29387.0,29386.0,0.00036613]
[1609553610313,0.18043158,29387.0,29385.0,0.00036613]
[1609553610614,0.18043158,29387.0,29386.0,0.00036613]
[1609553611114,0.18043158,29387.0,29384.0,0.00036613]
[1609553611515,0.18043158,29387.0,29386.0,0.18079771]
[1609553611718,0.18043158,29387.0,29386.0,0.18043158]
[1609553611916,0.18043158,29387.0,29386.0,0.18079771]
[1609553614816,4.66263158,29387.0,29386.0,0.18079771]
[1609553617525,4.66263158,29387.0,29386.0,0.00036613]
[1609553617926,4.66263158,29387.0,29384.0,0.00036613]
[1609553618225,4.66263158,29387.0,29386.0,0.00036613]
[1609553618426,4.66263158,29387.0,29385.0,0.00036613]
[1609553618826,4.66263158,29387.0,29384.0,0.00036613]
[1609553619026,4.66263158,29387.0,29386.0,0.00036613]
[1609553619226,4.66263158,29387.0,29383.0,0.18043158]
[1609553619227,4.66263158,29387.0,29385.0,0.00036613]
[1609553619526,4.66263158,29387.0,29384.0,0.00036613]
[1609553619728,4.66263158,29387.0,29386.0,0.00036613]
[1609553619927,0.18043158,29387.0,29386.0,0.00036613]
[1609553620127,0.18043158,29387.0,29384.0,0.00036613]
[1609553620331,0.18043158,29387.0,29386.0,0.00036613]
[1609553620528,0.18043158,29387.0,29385.0,0.00036613]
[1609553620728,0.17836313,29387.0,29385.0,0.00036613]
[1609553620927,0.17836313,29387.0,29384.0,0.00036613]
[1609553621127,0.17836313,29387.0,29386.0,0.00036613]
[1609553621327,0.17836313,29387.0,29385.0,0.00036613]
[1609553621629,0.17836313,29387.0,29386.0,0.00036613]
[1609553622128,0.17836313,29387.0,29384.0,0.00036518]
[1609553622431,0.17836313,29387.0,29386.0,0.00036518]
[1609553622629,0.17836313,29387.0,29385.0,0.00036518]
[1609553622930,0.17836313,29387.0,29384.0,0.00036518]
[1609553623229,0.17836313,29387.0,29386.0,0.00036518]
[1609553623429,0.17836313,29387.0,29385.0,0.00036518]
[1609553623730,0.17836313,29387.0,29384.0,0.00036518]
[1609553623930,0.17836313,29387.0,29386.0,0.00036518]
[1609553624230,0.17836313,29387.0,29384.0,0.00036518]
[1609553624530,0.17836313,29387.0,29386.0,0.00036518]
[1609553624732,0.17836313,29387.0,29385.0,0.00036518]
[1609553625033,0.17836313,29387.0,29384.0,0.00036518]
[1609553625332,0.17836313,29387.0,29386.0,0.00036518]
[1609553625532,0.17836313,29387.0,29385.0,0.00036518]
[1609553625933,0.17836313,29387.0,29384.0,0.00036518]
[1609553626132,0.17836313,29387.0,29386.0,0.0003652]
[1609553626332,0.17836313,29387.0,29384.0,0.03949639]
[1609553626733,0.17836313,29387.0,29386.0,0.0003652]
[1609553626933,0.17836313,29387.0,29384.0,0.03913119]
[1609553626934,0.17836313,29387.0,29385.0,0.0003652]
[1609553627134,0.17836313,29387.0,29386.0,0.0003652]
[1609553627635,0.17836313,29387.0,29384.0,0.03949639]
[1609553628434,5.2759,29385.0,29384.0,0.03949639]
[1609553629034,5.2759,29385.0,29384.0,0.0003652]
[1609553629235,5.2759,29385.0,29384.0,0.0394977]
[1609553629634,5.2759,29385.0,29379.0,0.21992874]
[1609553629834,5.2759,29385.0,29384.0,0.00036522]
[1609553630035,5.2759,29385.0,29380.0,0.0394978]
[1609553630338,5.2759,29385.0,29384.0,0.00036522]
[1609553630536,5.2759,29385.0,29381.0,0.00036522]
[1609553630935,5.2759,29385.0,29380.0,0.00036524]
[1609553631135,5.2759,29385.0,29382.0,0.00036524]
[1609553631335,5.2759,29385.0,29381.0,0.00036524]
[1609553631634,5.2759,29385.0,29383.0,0.00036524]
[1609553631836,5.2759,29385.0,29382.0,0.00036524]
[1609553632238,5.2759,29385.0,29380.0,0.00036524]
[1609553632439,5.2759,29385.0,29383.0,0.00036524]
[1609553632639,5.2759,29385.0,29381.0,0.00036524]
[1609553633040,5.2759,29385.0,29380.0,0.00036524]
[1609553633240,5.2759,29385.0,29382.0,0.00036524]
[1609553633440,5.2759,29385.0,29381.0,0.00036524]
[1609553633640,0.18043158,29382.0,29381.0,0.00036524]
[1609553633841,0.18043158,29382.0,29379.0,0.18043158]
[1609553634042,0.18043158,29382.0,29381.0,0.00036524]
[1609553634242,0.18043158,29382.0,29380.0,0.00036524]
[1609553634542,0.18043158,29382.0,29381.0,0.00036524]
[1609553634742,0.81793158,29382.0,29381.0,0.00036524]
[1609553635145,0.81793158,29382.0,29374.0,0.03950208]
[1609553635349,0.81793158,29382.0,29381.0,0.00036526]
[1609553635541,0.81793158,29382.0,29375.0,0.00036528]
[1609553635741,0.81473158,29376.0,29375.0,0.00036528]
[1609553635944,0.81473158,29376.0,29372.0,0.03950579]
[1609553636141,0.81473158,29376.0,29375.0,0.00036528]
[1609553636543,0.81473158,29376.0,29373.0,0.00036528]
[1609553636743,0.81473158,29376.0,29375.0,0.0003653]
[1609553636942,0.81473158,29376.0,29374.0,0.0003653]
[1609553637342,0.81473158,29376.0,29375.0,0.0003653]
[1609553637742,0.81473158,29376.0,29373.0,0.0003653]
[1609553638143,0.81473158,29376.0,29375.0,0.0003653]
[1609553638344,0.81473158,29376.0,29374.0,0.0003653]
[1609553638545,0.81266228,29376.0,29375.0,0.00036532]
[1609553639144,0.81266228,29376.0,29372.0,0.00036532]
[1609553639345,0.81266228,29376.0,29375.0,0.00036532]
[1609553639545,0.81266228,29376.0,29373.0,0.00036532]
[1609553639945,0.81266228,29376.0,29372.0,0.00036532]
[1609553640145,0.81266228,29376.0,29374.0,0.00036532]
[1609553640346,0.81266228,29376.0,29373.0,0.00036532]
[1609553640647,0.81266228,29376.0,29372.0,0.00036532]
[1609553640945,0.81266228,29376.0,29374.0,0.00036532]
[1609553641145,0.81266228,29376.0,29373.0,0.00036532]
[1609553641446,0.81266228,29376.0,29375.0,0.00036532]
[1609553641645,0.81266228,29376.0,29374.0,0.00036532]
[1609553641947,0.81266228,29376.0,29372.0,0.00036532]
[1609553642245,0.81266228,29376.0,29375.0,0.00036532]
[1609553642445,0.81266228,29376.0,29373.0,0.00036532]
[1609553642845,0.81266228,29376.0,29372.0,0.00036532]
[1609553643047,0.81266228,29376.0,29374.0,0.0003653]
[1609553643249,0.81266228,29376.0,29373.0,0.0003653]
[1609553643647,0.81266228,29376.0,29375.0,0.0003653]
[1609553643849,0.81266228,29376.0,29374.0,0.0003653]
[1609553644049,0.81266228,29376.0,29375.0,0.00036532]
[1609553644549,0.81266228,29376.0,29372.0,0.00036532]
[1609553645550,0.17836228,29376.0,29372.0,0.00036532]
[1609553645752,0.17836228,29376.0,29372.0,4.55036532]
[1609553645950,0.17836228,29376.0,29375.0,0.18043158]
[1609553646151,0.17836228,29376.0,29375.0,1.18043158]
[1609553646449,0.17836228,29376.0,29375.0,5.31229688]
[1609553646649,0.13583364,29383.0,29375.0,5.31229688]
[1609553646950,0.13583364,29383.0,29376.0,0.0003653]
[1609553648051,0.13583364,29383.0,29382.0,0.18043158]
[1609553648553,0.13583364,29383.0,29382.0,0.18079684]
[1609553649955,0.31626522,29383.0,29382.0,0.18079684]
[1609553651758,0.31626522,29383.0,29382.0,0.00036526]
[1609553652257,0.31626522,29383.0,29379.0,0.18043158]
[1609553652458,0.31626522,29383.0,29382.0,0.00036526]
[1609553652860,0.31626522,29383.0,29380.0,0.00036526]
[1609553653058,0.31626522,29383.0,29382.0,0.00036526]
[1609553653258,0.31626522,29383.0,29381.0,0.00036526]
[1609553653657,0.31626522,29383.0,29382.0,0.00036526]
[1609553654058,0.31626522,29383.0,29380.0,0.00036526]
[1609553654258,0.1033,29382.0,29373.0,0.17431]
[1609553654459,4.7878,29381.0,29366.0,5.0107]
[1609553654659,5.7878,29381.0,29374.0,0.00036528]
[1609553654858,5.7878,29381.0,29372.0,1.80918735]
[1609553655059,5.7878,29381.0,29375.0,0.00036531]
[1609553655359,5.7878,29381.0,29373.0,0.00036531]
[1609553655560,1.0,29381.0,29373.0,0.00036531]
[1609553655761,4.7247,29379.0,29376.0,0.00036531]
[1609553655963,4.7247,29379.0,29374.0,0.00036531]
[1609553656162,0.18043158,29375.0,29370.0,0.18043158]
[1609553656461,0.18043158,29375.0,29370.0,0.21957381]
[1609553656661,0.18043158,29375.0,29371.0,0.00036532]
[1609553657863,0.6864,29374.0,29371.0,0.00036532]
[1609553658262,0.18043158,29372.0,29371.0,0.00036532]
[1609553660165,0.18043158,29372.0,29371.0,5.63506532]
[1609553660365,1.0,29377.0,29371.0,6.63506532]
[1609553660765,0.0043133,29381.0,29371.0,6.63506532]
[1609553660967,0.0043133,29381.0,29372.0,0.00036532]
[1609553661169,0.74791053,29383.0,29371.0,6.6347]
[1609553661170,0.13583573,29383.0,29371.0,6.6347]
[1609553661569,0.13583573,29383.0,29373.0,0.00036532]
[1609553661971,0.28821648,29384.0,29374.0,0.00036533]
[1609553662774,3.935,29377.0,29374.0,0.00036533]
[1609553662974,4.11543158,29377.0,29376.0,0.18043158]
[1609553663174,4.11543158,29377.0,29376.0,1.18043158]
[1609553663376,0.18043158,29377.0,29376.0,1.18079691]
[1609553664078,0.18043158,29377.0,29376.0,0.18079691]
[1609553664576,0.18043158,29377.0,29376.0,0.21994261]
[1609553667181,0.18043158,29377.0,29376.0,1.21994261]
[1609553670986,0.18043158,29377.0,29376.0,0.21994261]
[1609553671486,0.18043158,29377.0,29376.0,1.21994261]
[1609553677194,0.17836262,29377.0,29376.0,1.21994261]
[1609553678394,0.00432412,29388.0,29376.0,1.21994261]
[1609553678594,0.00432412,29388.0,29381.0,4.0267]
[1609553678796,0.00432412,29388.0,29382.0,1.0]
[1609553678996,0.00432412,29388.0,29382.0,1.00036527]
[1609553679195,0.00432412,29388.0,29383.0,0.18043158]
[1609553679396,0.00432412,29388.0,29384.0,1.0]
[1609553679597,0.00432412,29388.0,29384.0,1.00036527]
[1609553679797,0.00432412,29388.0,29385.0,0.00036527]
[1609553679997,0.00432412,29388.0,29384.0,1.0]
[1609553680899,0.2812,29389.0,29384.0,1.0]
[1609553681199,0.2812,29389.0,29386.0,0.18043158]
[1609553681399,0.2812,29389.0,29386.0,1.18043158]
[1609553681800,0.2812,29389.0,29387.0,0.00036524]
[1609553683308,0.18043158,29388.0,29387.0,0.00036524]
[1609553685409,0.18043158,29388.0,29383.0,0.00036453]
[1609553685608,0.18043158,29388.0,29387.0,0.00036453]
[1609553685811,0.18043158,29388.0,29384.0,0.00036453]
[1609553686211,0.18043158,29388.0,29387.0,0.00036453]
[1609553686410,0.18043158,29388.0,29385.0,0.00036453]
[1609553686610,0.18043158,29388.0,29387.0,0.00036453]
[1609553686911,0.18043158,29388.0,29386.0,0.00036453]
[1609553687111,0.18043158,29388.0,29387.0,0.00036453]
[1609553687411,0.18043158,29388.0,29383.0,0.00036453]
[1609553687711,0.18043158,29388.0,29387.0,0.00036453]
[1609553687912,0.18043158,29388.0,29384.0,0.00036453]
[1609553688212,0.18043158,29388.0,29387.0,0.00036453]
[1609553688413,0.18043158,29388.0,29385.0,0.00036453]
[1609553688814,0.18043158,29388.0,29383.0,0.00036453]
[1609553689014,0.18043158,29388.0,29386.0,0.00036453]
[1609553689213,0.18043158,29388.0,29384.0,0.00036453]
[1609553689514,0.18043158,29388.0,29383.0,0.00036453]
[1609553689715,0.18043158,29388.0,29385.0,0.00036453]
[1609553689914,0.11762,29390.0,29387.0,4.5262]
[1609553690115,0.01483738,29391.0,29388.0,1.0]
[1609553690314,0.01483738,29391.0,29388.0,1.00036447]
[1609553690515,0.01483738,29391.0,29389.0,0.03916482]
[1609553690917,0.01483738,29391.0,29389.0,0.00036441]
[1609553691116,0.01050976,29390.0,29388.0,1.0]
[1609553691316,0.01050976,29390.0,29389.0,0.18043158]
[1609553691516,0.01050976,29390.0,29389.0,1.18043158]
[1609553691716,0.01050976,29390.0,29389.0,1.18079598]
[1609553692420,0.14585,29397.0,29389.0,1.18079598]
[1609553693016,0.14585,29397.0,29390.0,0.0003644]
[1609553693216,0.14585,29397.0,29396.0,0.18043158]
[1609553693817,0.14585,29397.0,29396.0,0.18079598]
[1609553696218,0.14585,29397.0,29396.0,0.18043158]
[1609553696419,0.14585,29397.0,29396.0,0.18079596]
[1609553696619,0.02170617,29404.0,29396.0,0.18079596]
[1609553697219,0.02170617,29404.0,29397.0,0.00036438]
[1609553697420,0.01121847,29404.0,29397.0,4.09096438]
[1609553697919,0.01121847,29404.0,29398.0,0.00036438]
[1609553698621,1.01121847,29404.0,29398.0,0.00036438]
[1609553700121,1.01121847,29404.0,29397.0,4.0906]
[1609553700320,0.33640158,29399.0,29397.0,4.0906]
[1609553704024,0.33640158,29399.0,29398.0,0.00036438]
[1609553704224,0.33640158,29399.0,29397.0,4.0906]
[1609553705526,0.33640158,29399.0,29398.0,0.00036438]
[1609553709931,0.33640158,29399.0,29397.0,0.00036438]
[1609553710432,0.33640158,29399.0,29397.0,0.54716438]
[1609553710832,0.33640158,29399.0,29398.0,0.00036438]
[1609553712635,1.33640158,29399.0,29398.0,0.00036438]
[1609553714734,0.33640158,29399.0,29398.0,0.00036438]
[1609553718241,0.33640158,29399.0,29398.0,5.43286438]
[1609553718438,0.33640158,29399.0,29398.0,5.4325]
[1609553718638,0.33640158,29399.0,29398.0,5.43286435]
[1609553720241,0.33640158,29399.0,29398.0,5.47165604]
[1609553720943,0.33640158,29399.0,29398.0,5.43286435]
[1609553721342,0.33640158,29399.0,29398.0,5.47165569]
[1609553729053,0.15597,29399.0,29398.0,5.47165569]
[1609553729453,0.0069,29404.0,29398.0,5.47165569]
[1609553729753,0.0069,29404.0,29403.0,0.18043158]
[1609553730355,0.0073141,29404.0,29403.0,0.18079593]
[1609553731560,0.18774568,29404.0,29403.0,0.18079593]
[1609553732959,0.18774568,29404.0,29403.0,0.94459593]
[1609553734559,0.18774568,29404.0,29403.0,0.18079593]
[1609553734959,0.33403568,29404.0,29403.0,0.18079593]
[1609553735160,0.33362158,29404.0,29403.0,5.46459593]
[1609553741672,0.33362158,29404.0,29403.0,5.56569593]
[1609553742074,0.43522158,29404.0,29403.0,5.56569593]
[1609553743177,0.43563565,29404.0,29403.0,5.56569593]
[1609553743479,0.33403565,29404.0,29403.0,5.46459593]
[1609553745485,0.43653565,29404.0,29403.0,5.56569593]
[1609553746284,0.43653565,29404.0,29403.0,5.46459593]
[1609553746485,0.33403565,29404.0,29403.0,5.46459593]
[1609553746885,0.33362158,29404.0,29403.0,5.46459593]
[1609553747288,0.33403565,29404.0,29403.0,5.56589593]
[1609553747488,0.43533565,29404.0,29403.0,5.56589593]
[1609553747790,0.43492158,29404.0,29403.0,5.56589593]
[1609553748391,0.43533565,29404.0,29403.0,5.56589593]
[1609553748593,0.43492158,29404.0,29403.0,5.56589593]
[1609553748792,0.25490406,29404.0,29403.0,6.56589593]
[1609553749392,0.25449,29404.0,29403.0,6.56589593]
[1609553749592,0.25449,29404.0,29403.0,1.28209593]
[1609553749992,4.55039,29404.0,29403.0,0.18079593]
[1609553750993,4.55039,29404.0,29403.0,0.00036435]
[1609553751196,0.25499,29404.0,29394.0,1.77258603]
[1609553751394,0.25540406,29404.0,29395.0,0.00036572]
[1609553751594,5.0843,29397.0,29395.0,0.00036572]
[1609553751793,0.18043158,29396.0,29395.0,0.1807973]
[1609553751995,0.17836395,29396.0,29395.0,2.1923163]
[1609553753196,0.17836395,29396.0,29395.0,0.1807973]
[1609553753794,0.17836395,29396.0,29395.0,0.00036572]
[1609553754295,0.17836395,29396.0,29393.0,0.0003658]
[1609553758799,1.0,29394.0,29393.0,0.0003658]
[1609553762403,1.6627,29394.0,29393.0,0.0003658]
[1609553764606,1.6627,29394.0,29390.0,0.00036583]
[1609553765008,1.6627,29394.0,29393.0,0.00036583]
[1609553765207,1.6627,29394.0,29391.0,0.00036583]
[1609553765407,1.6627,29394.0,29393.0,0.00036583]
[1609553765607,1.6627,29394.0,29392.0,0.00036583]
[1609553765907,0.18043158,29393.0,29390.0,0.00036583]
[1609553766208,0.18043158,29393.0,29389.0,3.8182]
[1609553766408,0.18043158,29393.0,29391.0,0.00036583]
[1609553766809,1.0,29391.0,29390.0,0.00036583]
[1609553767009,1.0,29391.0,29389.0,3.8182]
[1609553767207,1.0,29391.0,29390.0,0.00036584]
[1609553770708,0.18043158,29393.0,29390.0,0.00036584]
[1609553771309,0.18043158,29393.0,29389.0,3.8182]
[1609553771509,0.18043158,29393.0,29391.0,0.00036583]
[1609553771709,0.18043158,29393.0,29390.0,0.00036583]
[1609553771909,0.18043158,29393.0,29392.0,0.00036583]
[1609553772109,0.18043158,29393.0,29389.0,3.8182]
[1609553772310,0.18043158,29393.0,29392.0,0.00036582]
[1609553772511,0.18043158,29393.0,29390.0,0.00036582]
[1609553772709,0.18043158,29393.0,29392.0,0.00036582]
[1609553772710,1.18043158,29393.0,29392.0,0.00036582]
[1609553773109,1.18043158,29393.0,29390.0,0.00036582]
[1609553773309,1.18043158,29393.0,29392.0,0.00036582]
[1609553773511,1.18043158,29393.0,29391.0,0.00036582]
[1609553773910,1.18043158,29393.0,29392.0,0.00036582]
[1609553774311,1.0,29393.0,29390.0,0.00036582]
[1609553774613,1.0,29393.0,29392.0,0.00036582]
[1609553774812,0.6627,29394.0,29391.0,0.0003658]
[1609553775113,0.6627,29394.0,29390.0,0.0003658]
[1609553775412,0.6627,29394.0,29392.0,0.0003658]
[1609553775612,0.6627,29394.0,29389.0,4.8182]
[1609553775613,0.6627,29394.0,29391.0,0.0003658]
[1609553775912,0.6627,29394.0,29393.0,0.18079738]
[1609553776113,0.6627,29394.0,29393.0,0.18043158]
[1609553776513,0.6627,29394.0,29393.0,0.18079736]
[1609553778017,0.6627,29394.0,29393.0,1.18079736]
[1609553779319,0.6627,29394.0,29393.0,0.18079736]
[1609553779721,0.6627,29394.0,29393.0,1.18079736]
[1609553780220,0.6627,29394.0,29393.0,0.18079736]
[1609553781622,0.66063221,29394.0,29393.0,0.18079736]
[1609553782425,0.66063221,29394.0,29393.0,0.22023784]
[1609553782728,0.66063221,29394.0,29393.0,0.18079736]
[1609553783929,0.84106379,29394.0,29393.0,0.17919736]
[1609553784130,0.84106379,29394.0,29393.0,0.16759736]
[1609553784332,0.18043158,29394.0,29393.0,0.16759736]
[1609553784731,1.18043158,29394.0,29393.0,0.16759736]
[1609553795954,1.84243158,29394.0,29393.0,0.16759736]
[1609553797457,1.18043158,29394.0,29393.0,0.16759736]
[1609553800360,1.18043158,29394.0,29393.0,0.00036578]
[1609553800759,1.18043158,29394.0,29391.0,0.00036582]
[1609553801361,1.18043158,29394.0,29391.0,0.03980855]
[1609553801861,1.18043158,29394.0,29391.0,0.00036582]
[1609553802162,1.18043158,29394.0,29392.0,0.00036582]
[1609553802665,0.18043158,29394.0,29391.0,0.00036552]
[1609553802865,1.18043158,29394.0,29393.0,0.00036552]
[1609553803265,1.18043158,29394.0,29391.0,0.00036552]
[1609553803465,1.18043158,29394.0,29393.0,0.00036552]
[1609553803665,1.18043158,29394.0,29392.0,0.00036552]
[1609553804066,1.18043158,29394.0,29390.0,0.18043158]
[1609553804267,1.18043158,29394.0,29391.0,0.03930811]
[1609553804469,1.18043158,29394.0,29391.0,0.03967363]
[1609553804672,0.18043158,29394.0,29391.0,0.03967363]
[1609553806772,1.0,29392.0,29391.0,0.03967363]
[1609553808573,0.99793195,29392.0,29391.0,0.03967363]
[1609553808773,1.0,29392.0,29391.0,0.03967363]
[1609553810480,4.9485,29392.0,29391.0,0.00036552]
[1609553810682,5.07114,29392.0,29391.0,0.00036552]
[1609553810880,5.07114,29392.0,29386.0,1.83436141]
[1609553811079,5.07114,29392.0,29391.0,0.00036554]
[1609553811280,5.07114,29392.0,29387.0,0.03967514]
[1609553811482,1.12264,29392.0,29387.0,0.03967514]
[1609553811680,1.22544,29392.0,29387.0,0.03967514]
[1609553811882,5.5541,29388.0,29384.0,0.03967855]
[1609553812084,5.5541,29388.0,29380.0,1.79867936]
[1609553812380,0.00041426,29387.0,29385.0,0.0003656]
[1609553812580,0.18043158,29386.0,29381.0,0.0396808]
[1609553812780,1.34648158,29386.0,29381.0,0.0396808]
[1609553813181,1.34648158,29386.0,29381.0,0.0003656]
[1609553813382,1.34648158,29386.0,29382.0,0.0003656]
[1609553813783,1.34648158,29386.0,29381.0,0.0003656]
[1609553813986,1.34648158,29386.0,29383.0,0.0003656]
[1609553814184,1.34648158,29386.0,29382.0,0.0003656]
[1609553814586,1.16605,29386.0,29384.0,0.0003656]
[1609553814786,1.16605,29386.0,29372.0,6.38693808]
[1609553814787,0.16605,29386.0,29383.0,0.00036562]
[1609553814986,0.16605,29386.0,29385.0,0.00036564]
[1609553815287,0.00433254,29385.0,29384.0,0.00036564]
[1609553815486,0.00433254,29385.0,29373.0,1.80238416]
[1609553815787,0.00433254,29385.0,29374.0,0.03968533]
[1609553816490,0.18043158,29375.0,29374.0,0.03968533]
[1609553816689,0.18043158,29375.0,29374.0,0.00036564]
[1609553817090,0.18043158,29375.0,29373.0,1.80238416]
[1609553817390,0.18043158,29375.0,29374.0,0.00036564]
[1609553818390,0.18043158,29375.0,29373.0,0.00036564]
[1609553818592,0.18043158,29375.0,29373.0,1.00036564]
[1609553818792,0.18043158,29375.0,29374.0,0.00036564]
[1609553818995,0.17836285,29375.0,29374.0,0.00036564]
[1609553820496,0.17836285,29375.0,29374.0,0.00036563]
[1609553824499,0.17836285,29375.0,29373.0,0.00036563]
[1609553824701,0.17836285,29375.0,29374.0,0.00036563]
[1609553825101,0.17836285,29375.0,29373.0,0.00036563]
[1609553825303,0.17836285,29375.0,29374.0,0.00036563]
[1609553825803,0.17836285,29375.0,29373.0,0.00036563]
[1609553826001,0.17836285,29375.0,29374.0,0.00036563]
[1609553826302,0.17836285,29375.0,29373.0,0.00036563]
[1609553826702,0.17836285,29375.0,29374.0,0.00036563]
[1609553827103,0.17836285,29375.0,29372.0,6.93352941]
[1609553827104,0.17836285,29375.0,29373.0,0.00036563]
[1609553827311,0.17836285,29375.0,29374.0,0.00036563]
[1609553827606,0.17836285,29375.0,29373.0,0.00036563]
[1609553828007,0.17836285,29375.0,29374.0,0.00036563]
[1609553828407,0.17836285,29375.0,29373.0,0.00036563]
[1609553828606,0.17836285,29375.0,29374.0,0.00036563]
[1609553829006,0.17836285,29375.0,29373.0,0.00036563]
[1609553829206,0.17836285,29375.0,29374.0,0.00036563]
[1609553829407,0.16605,29386.0,29374.0,0.00036563]
[1609553829807,1.0,29387.0,29375.0,4.3994]
[1609553830007,1.0,29387.0,29376.0,1.0]
[1609553830208,1.0,29387.0,29376.0,1.00036561]
[1609553830509,1.0,29387.0,29377.0,0.00036561]
[1609553830708,1.0,29387.0,29378.0,0.18043158]
[1609553830907,1.0,29381.0,29378.0,0.18043158]
[1609553831107,1.0,29381.0,29379.0,0.00036561]
[1609553832808,0.18043158,29380.0,29379.0,0.00036561]
[1609553837411,0.18043158,29380.0,29377.0,0.00036563]
[1609553837612,0.18043158,29380.0,29379.0,0.00036563]
[1609553837812,0.18043158,29380.0,29378.0,0.00036563]
[1609553838114,0.18043158,29380.0,29379.0,0.00036563]
[1609553838613,0.18043158,29380.0,29377.0,0.00036561]
[1609553839014,0.18043158,29380.0,29379.0,0.00036561]
[1609553839214,0.18043158,29380.0,29378.0,0.00036561]
[1609553839416,0.18043158,29380.0,29379.0,0.00036561]
[1609553840015,0.18043158,29380.0,29377.0,0.03968248]
[1609553840216,0.18043158,29380.0,29379.0,0.00036561]
[1609553840415,0.18043158,29380.0,29378.0,0.00036561]
[1609553840818,0.18043158,29380.0,29377.0,0.03968248]
[1609553841018,0.18043158,29380.0,29379.0,0.00036561]
[1609553841217,0.18043158,29380.0,29378.0,0.00036561]
[1609553841518,0.18043158,29380.0,29377.0,0.03968248]
[1609553841718,0.18043158,29380.0,29379.0,0.00036561]
[1609553842017,0.18043158,29380.0,29377.0,0.03968248]
[1609553842317,0.18043158,29380.0,29379.0,0.00036561]
[1609553842518,0.18043158,29380.0,29378.0,0.00036561]
[1609553842919,0.18043158,29380.0,29377.0,0.03968248]
[1609553843119,0.18043158,29380.0,29379.0,0.00036561]
[1609553843317,0.18043158,29380.0,29378.0,0.00036561]
[1609553843619,0.18043158,29380.0,29377.0,0.03968248]
[1609553843920,0.18043158,29380.0,29379.0,0.00036561]
[1609553844124,0.17836273,29380.0,29378.0,0.00036566]
[1609553844422,0.17836273,29380.0,29379.0,0.00036566]